[Event "Titled Tuesday Blitz June 6 Early 2023"]
[White "Iskusnyh, Sergei"]
[Black "Kukhmazov, Arsen"]
[WhiteFideId "4120027"]
[BlackFideId "24108260"]
[WhiteElo "2492"]
[BlackElo "2396"]
[Result "0-1"]
[Round "8"]
[TimeControl "180+2"]
[Date "2023.06.06"]
[WhiteClock "0:00:11"]
[BlackClock "0:00:08"]
[Board "40"]

1. d4 {[%clk 0:03:00]}  d5 {[%clk 0:02:57]} 2. c4 {[%clk 0:03:00]}  c6 {[%clk 0:02:56]} 3. Nf3 {[%clk 0:02:59]}  Nf6 {[%clk 0:02:56]} 4. e3 {[%clk 0:02:59]}  Bg4 {[%clk 0:02:56]} 5. h3 {[%clk 0:02:57]}  Bh5 {[%clk 0:02:56]} 6. g4 {[%clk 0:02:54]}  Bg6 {[%clk 0:02:56]} 7. Ne5 {[%clk 0:02:54]}  Nbd7 {[%clk 0:02:40]} 8. Nxg6 {[%clk 0:02:50]}  hxg6 {[%clk 0:02:41]} 9. cxd5 {[%clk 0:02:40]}  cxd5 {[%clk 0:02:41]} 10. Nc3 {[%clk 0:02:40]}  e6 {[%clk 0:02:32]} 11. Bd2 {[%clk 0:02:34]}  g5 {[%clk 0:02:28]} 12. Rc1 {[%clk 0:02:27]}  a6 {[%clk 0:02:25]} 13. Bg2 {[%clk 0:02:10]}  Bd6 {[%clk 0:02:25]} 14. e4 {[%clk 0:02:07]}  Nxe4 {[%clk 0:02:15]} 15. Nxe4 {[%clk 0:02:05]}  dxe4 {[%clk 0:02:16]} 16. Bxe4 {[%clk 0:02:05]}  Rb8 {[%clk 0:02:16]} 17. d5 {[%clk 0:01:53]}  Nc5 {[%clk 0:02:13]} 18. dxe6 {[%clk 0:01:48]}  Nxe6 {[%clk 0:02:03]} 19. Bd5 {[%clk 0:01:40]}  Nf4 {[%clk 0:01:41]} 20. Bxf4 {[%clk 0:01:35]}  Bxf4 {[%clk 0:01:40]} 21. Rc4 {[%clk 0:01:34]}  O-O {[%clk 0:01:39]} 22. O-O {[%clk 0:01:31]}  Qf6 {[%clk 0:01:35]} 23. Qf3 {[%clk 0:01:25]}  Qxb2 {[%clk 0:01:25]} 24. h4 {[%clk 0:01:24]}  b5 {[%clk 0:01:18]} 25. Rc6 {[%clk 0:01:17]}  Rbd8 {[%clk 0:01:08]} 26. Rxa6 {[%clk 0:01:06]}  Qe5 {[%clk 0:01:08]} 27. Bb3 {[%clk 0:00:43]}  gxh4 {[%clk 0:01:08]} 28. Ra7 {[%clk 0:00:42]}  Rd6 {[%clk 0:01:03]} 29. Rxf7 {[%clk 0:00:29]}  Rxf7 {[%clk 0:00:57]} 30. Qa8+ {[%clk 0:00:29]}  Kh7 {[%clk 0:00:56]} 31. Bxf7 {[%clk 0:00:29]}  Rd2 {[%clk 0:00:35]} 32. Qg8+ {[%clk 0:00:27]}  Kh6 {[%clk 0:00:35]} 33. Qh8+ {[%clk 0:00:18]}  Kg5 {[%clk 0:00:35]} 34. Qh5+ {[%clk 0:00:16]}  Kf6 {[%clk 0:00:35]} 35. Qg6+ {[%clk 0:00:17]}  Ke7 {[%clk 0:00:35]} 36. Bb3 {[%clk 0:00:15]}  h3 {[%clk 0:00:20]} 37. Qf7+ {[%clk 0:00:14]}  Kd6 {[%clk 0:00:21]} 38. Qf8+ {[%clk 0:00:13]}  Kd7 {[%clk 0:00:17]} 39. Rc1 {[%clk 0:00:13]}  h2+ {[%clk 0:00:14]} 40. Kg2 {[%clk 0:00:12]}  Qe4+ {[%clk 0:00:10]} 41. Kh3 {[%clk 0:00:12]}  Qf3+ {[%clk 0:00:10]} 42. Kh4 {[%clk 0:00:12]}  Bg5+ {[%clk 0:00:07]} 43. Kh5 {[%clk 0:00:11]}  Qxf8 {[%clk 0:00:08]} 0-1


[Site "https://www.chess.com"]

[Event "Titled Tuesday Blitz June 6 Early 2023"]
[White "MKlose11"]
[Black "splendidkid"]
[WhiteElo "2559"]
[BlackElo "2754"]
[Result "0-1"]
[Round "8"]
[TimeControl "180+2"]
[Date "2023.06.06"]
[WhiteClock "0:00:03"]
[BlackClock "0:01:00"]
[Board "41"]

1. e4 {[%clk 0:03:00]}  c5 {[%clk 0:02:57]} 2. Nc3 {[%clk 0:02:59]}  Nc6 {[%clk 0:02:55]} 3. g3 {[%clk 0:02:59]}  g6 {[%clk 0:02:55]} 4. d3 {[%clk 0:02:59]}  Bg7 {[%clk 0:02:55]} 5. Bg2 {[%clk 0:03:00]}  e6 {[%clk 0:02:56]} 6. Be3 {[%clk 0:02:59]}  Nd4 {[%clk 0:02:56]} 7. Qd2 {[%clk 0:02:59]}  Rb8 {[%clk 0:02:44]} 8. Nd1 {[%clk 0:02:58]}  d6 {[%clk 0:02:43]} 9. c3 {[%clk 0:02:58]}  Nc6 {[%clk 0:02:43]} 10. Ne2 {[%clk 0:02:58]}  Nge7 {[%clk 0:02:44]} 11. Bh6 {[%clk 0:02:59]}  O-O {[%clk 0:02:43]} 12. h4 {[%clk 0:02:59]}  f6 {[%clk 0:02:42]} 13. Bxg7 {[%clk 0:02:56]}  Kxg7 {[%clk 0:02:42]} 14. f4 {[%clk 0:02:57]}  h5 {[%clk 0:02:38]} 15. Ne3 {[%clk 0:02:52]}  b5 {[%clk 0:02:32]} 16. d4 {[%clk 0:02:48]}  cxd4 {[%clk 0:02:31]} 17. Nxd4 {[%clk 0:02:48]}  Nxd4 {[%clk 0:02:30]} 18. Qxd4 {[%clk 0:02:48]}  Nc6 {[%clk 0:02:30]} 19. Qd2 {[%clk 0:02:46]}  Qc7 {[%clk 0:02:21]} 20. Rd1 {[%clk 0:02:39]}  Rd8 {[%clk 0:02:20]} 21. O-O {[%clk 0:02:40]}  a5 {[%clk 0:02:17]} 22. g4 {[%clk 0:02:17]}  hxg4 {[%clk 0:02:11]} 23. Nxg4 {[%clk 0:02:18]}  Rh8 {[%clk 0:01:46]} 24. Qxd6 {[%clk 0:02:10]}  Qb6+ {[%clk 0:01:46]} 25. Nf2 {[%clk 0:01:47]}  e5 {[%clk 0:01:38]} 26. fxe5 {[%clk 0:01:30]}  fxe5 {[%clk 0:01:38]} 27. Qd2 {[%clk 0:01:21]}  Bg4 {[%clk 0:01:32]} 28. Rde1 {[%clk 0:01:16]}  Rxh4 {[%clk 0:01:31]} 29. Qe3 {[%clk 0:00:25]}  Qxe3 {[%clk 0:01:24]} 30. Rxe3 {[%clk 0:00:26]}  Rd8 {[%clk 0:01:19]} 31. Rg3 {[%clk 0:00:22]}  Be6 {[%clk 0:01:16]} 32. a3 {[%clk 0:00:19]}  Bb3 {[%clk 0:01:15]} 33. Rd3 {[%clk 0:00:18]}  Rhh8 {[%clk 0:01:15]} 34. Re1 {[%clk 0:00:13]}  a4 {[%clk 0:01:15]} 35. Ree3 {[%clk 0:00:12]}  Bc4 {[%clk 0:01:11]} 36. Rxd8 {[%clk 0:00:11]}  Rxd8 {[%clk 0:01:12]} 37. Bf1 {[%clk 0:00:12]}  Na5 {[%clk 0:01:12]} 38. Bd3 {[%clk 0:00:10]}  Kf6 {[%clk 0:01:10]} 39. Kg2 {[%clk 0:00:10]}  Kg5 {[%clk 0:01:10]} 40. Rg3+ {[%clk 0:00:10]}  Kf6 {[%clk 0:01:11]} 41. Rf3+ {[%clk 0:00:11]}  Ke6 {[%clk 0:01:11]} 42. Kg3 {[%clk 0:00:09]}  Bxd3 {[%clk 0:01:11]} 43. Nxd3 {[%clk 0:00:10]}  Nc4 {[%clk 0:01:11]} 44. Kg4 {[%clk 0:00:10]}  Rh8 {[%clk 0:01:08]} 45. Kg5 {[%clk 0:00:09]}  Rh2 {[%clk 0:01:06]} 46. Kxg6 {[%clk 0:00:06]}  Rg2+ {[%clk 0:01:06]} 47. Kh5 {[%clk 0:00:07]}  Nxb2 {[%clk 0:01:07]} 48. Nxb2 {[%clk 0:00:03]}  Rxb2 {[%clk 0:01:07]} 49. Rd3 {[%clk 0:00:03]}  Rb3 {[%clk 0:01:06]} 50. Rd5 {[%clk 0:00:03]}  Kf6 {[%clk 0:01:00]} 51. Rxe5 {[%clk 0:00:03]}  Kxe5 {[%clk 0:01:00]} 52. Kg4 {[%clk 0:00:03]}  Kxe4 {[%clk 0:01:00]} 0-1


[Site "https://www.chess.com"]

[Event "Titled Tuesday Blitz June 6 Early 2023"]
[White "Abdilkhair, Abilmansur"]
[Black "Reprintsev, Alexander"]
[WhiteFideId "13716417"]
[BlackFideId "14100541"]
[WhiteElo "2210"]
[BlackElo "2229"]
[Result "0-1"]
[Round "8"]
[TimeControl "180+2"]
[Date "2023.06.06"]
[WhiteClock "0:01:47"]
[BlackClock "0:02:24"]
[Board "45"]

1. e4 {[%clk 0:03:00]}  d5 {[%clk 0:02:59]} 2. exd5 {[%clk 0:03:00]}  Qxd5 {[%clk 0:02:58]} 3. Nc3 {[%clk 0:03:00]}  Qa5 {[%clk 0:02:58]} 4. d4 {[%clk 0:02:59]}  Nf6 {[%clk 0:02:58]} 5. Nf3 {[%clk 0:02:55]}  Nc6 {[%clk 0:02:58]} 6. d5 {[%clk 0:02:46]}  Nb4 {[%clk 0:02:57]} 7. Bc4 {[%clk 0:02:46]}  e6 {[%clk 0:02:56]} 8. dxe6 {[%clk 0:02:43]}  Bxe6 {[%clk 0:02:56]} 9. Bxe6 {[%clk 0:02:41]}  fxe6 {[%clk 0:02:57]} 10. O-O {[%clk 0:02:40]}  Bd6 {[%clk 0:02:57]} 11. Qe2 {[%clk 0:02:27]}  Qf5 {[%clk 0:02:55]} 12. Nd4 {[%clk 0:02:24]}  Qe5 {[%clk 0:02:55]} 13. Qxe5 {[%clk 0:02:17]}  Bxe5 {[%clk 0:02:55]} 14. Nxe6 {[%clk 0:02:17]}  Nxc2 {[%clk 0:02:41]} 15. f4 {[%clk 0:02:12]}  Bxc3 {[%clk 0:02:38]} 16. Rb1 {[%clk 0:01:49]}  Bd4+ {[%clk 0:02:37]} 17. Kh1 {[%clk 0:01:49]}  Kf7 {[%clk 0:02:35]} 18. Nxc7 {[%clk 0:01:47]}  Rac8 {[%clk 0:02:33]} 19. Nb5 {[%clk 0:01:47]}  Rhd8 {[%clk 0:02:24]} 0-1


[Site "https://www.chess.com"]

[Event "Titled Tuesday Blitz June 6 Early 2023"]
[White "Goffredo_Fofi"]
[Black "Fier, Alexandr"]
[BlackFideId "2107139"]
[WhiteElo "2496"]
[BlackElo "2610"]
[Result "0-1"]
[Round "8"]
[TimeControl "180+2"]
[Date "2023.06.06"]
[WhiteClock "0:00:10"]
[BlackClock "0:02:12"]
[Board "47"]

1. d4 {[%clk 0:03:00]}  d5 {[%clk 0:02:59]} 2. Nf3 {[%clk 0:03:00]}  c5 {[%clk 0:02:56]} 3. c4 {[%clk 0:02:59]}  cxd4 {[%clk 0:02:55]} 4. cxd5 {[%clk 0:02:56]}  Qxd5 {[%clk 0:02:55]} 5. Qxd4 {[%clk 0:02:56]}  Qxd4 {[%clk 0:02:55]} 6. Nxd4 {[%clk 0:02:57]}  a6 {[%clk 0:02:56]} 7. Nc3 {[%clk 0:02:53]}  e5 {[%clk 0:02:56]} 8. Nc2 {[%clk 0:02:48]}  Nc6 {[%clk 0:02:56]} 9. e4 {[%clk 0:02:34]}  Be6 {[%clk 0:02:52]} 10. Be3 {[%clk 0:02:29]}  O-O-O {[%clk 0:02:50]} 11. Bb6 {[%clk 0:02:22]}  Rd7 {[%clk 0:02:50]} 12. Rd1 {[%clk 0:02:16]}  Rxd1+ {[%clk 0:02:48]} 13. Kxd1 {[%clk 0:02:17]}  Nf6 {[%clk 0:02:49]} 14. Be2 {[%clk 0:02:04]}  Nd7 {[%clk 0:02:49]} 15. Be3 {[%clk 0:02:04]}  Bc5 {[%clk 0:02:49]} 16. Kc1 {[%clk 0:01:59]}  Bxe3+ {[%clk 0:02:47]} 17. Nxe3 {[%clk 0:02:00]}  Nd4 {[%clk 0:02:47]} 18. Bc4 {[%clk 0:01:54]}  Nb6 {[%clk 0:02:45]} 19. Bxe6+ {[%clk 0:01:52]}  fxe6 {[%clk 0:02:46]} 20. b3 {[%clk 0:01:42]}  h5 {[%clk 0:02:42]} 21. Kb2 {[%clk 0:01:28]}  g5 {[%clk 0:02:39]} 22. h3 {[%clk 0:01:25]}  Rf8 {[%clk 0:02:37]} 23. f3 {[%clk 0:01:26]}  Kd7 {[%clk 0:02:35]} 24. Rd1 {[%clk 0:01:22]}  Ke7 {[%clk 0:02:34]} 25. a4 {[%clk 0:01:21]}  Nd7 {[%clk 0:02:28]} 26. Nc4 {[%clk 0:01:13]}  Kf6 {[%clk 0:02:27]} 27. Ne2 {[%clk 0:00:55]}  Nxe2 {[%clk 0:02:24]} 28. Rxd7 {[%clk 0:00:55]}  b5 {[%clk 0:02:25]} 29. axb5 {[%clk 0:00:54]}  axb5 {[%clk 0:02:25]} 30. Ne3 {[%clk 0:00:52]}  Nf4 {[%clk 0:02:26]} 31. Rb7 {[%clk 0:00:48]}  Rd8 {[%clk 0:02:26]} 32. Kc2 {[%clk 0:00:44]}  Rd3 {[%clk 0:02:23]} 33. Nd1 {[%clk 0:00:34]}  Rd4 {[%clk 0:02:22]} 34. Ne3 {[%clk 0:00:33]}  b4 {[%clk 0:02:22]} 35. Rc7 {[%clk 0:00:29]}  Rd3 {[%clk 0:02:22]} 36. Nd1 {[%clk 0:00:29]}  Rd6 {[%clk 0:02:22]} 37. Ne3 {[%clk 0:00:28]}  Ra6 {[%clk 0:02:22]} 38. Rb7 {[%clk 0:00:16]}  Ra2+ {[%clk 0:02:21]} 39. Kd1 {[%clk 0:00:16]}  Re2 {[%clk 0:02:19]} 40. Nf1 {[%clk 0:00:15]}  Rxg2 {[%clk 0:02:19]} 41. Rxb4 {[%clk 0:00:15]}  Rf2 {[%clk 0:02:17]} 42. Nd2 {[%clk 0:00:15]}  Nxh3 {[%clk 0:02:18]} 43. Rb8 {[%clk 0:00:15]}  Nf4 {[%clk 0:02:14]} 44. Rh8 {[%clk 0:00:14]}  Kg7 {[%clk 0:02:13]} 45. Re8 {[%clk 0:00:13]}  h4 {[%clk 0:02:14]} 46. Ke1 {[%clk 0:00:11]}  Re2+ {[%clk 0:02:14]} 47. Kd1 {[%clk 0:00:12]}  h3 {[%clk 0:02:14]} 48. Re7+ {[%clk 0:00:12]}  Kg6 {[%clk 0:02:13]} 49. Re8 {[%clk 0:00:10]}  h2 {[%clk 0:02:12]} 50. Rh8 {[%clk 0:00:11]}  Rg2 {[%clk 0:02:12]} 51. Kc2 {[%clk 0:00:10]}  Nh5 {[%clk 0:02:12]} 0-1


[Site "https://www.chess.com"]

[Event "Titled Tuesday Blitz June 6 Early 2023"]
[White "Dragnev, Valentin"]
[Black "Trifan, Andrei Ioan"]
[WhiteFideId "1634852"]
[BlackFideId "12967068"]
[WhiteElo "2487"]
[BlackElo "2208"]
[Result "1-0"]
[Round "8"]
[TimeControl "180+2"]
[Date "2023.06.06"]
[WhiteClock "0:00:16"]
[BlackClock "0:00:08"]
[Board "49"]

1. e4 {[%clk 0:03:00]}  e5 {[%clk 0:02:42]} 2. Nf3 {[%clk 0:03:00]}  Nc6 {[%clk 0:02:42]} 3. Bc4 {[%clk 0:03:00]}  Bc5 {[%clk 0:02:41]} 4. d3 {[%clk 0:03:01]}  Nf6 {[%clk 0:02:37]} 5. O-O {[%clk 0:03:01]}  d6 {[%clk 0:02:37]} 6. c3 {[%clk 0:03:01]}  a6 {[%clk 0:02:37]} 7. a4 {[%clk 0:03:01]}  Ba7 {[%clk 0:02:37]} 8. Re1 {[%clk 0:03:01]}  h6 {[%clk 0:02:37]} 9. Nbd2 {[%clk 0:02:58]}  g5 {[%clk 0:02:35]} 10. Nf1 {[%clk 0:02:54]}  g4 {[%clk 0:02:35]} 11. N3d2 {[%clk 0:02:50]}  h5 {[%clk 0:02:34]} 12. d4 {[%clk 0:02:27]}  exd4 {[%clk 0:02:25]} 13. cxd4 {[%clk 0:02:28]}  Bxd4 {[%clk 0:02:17]} 14. Nb3 {[%clk 0:02:24]}  Ba7 {[%clk 0:02:16]} 15. Bg5 {[%clk 0:02:18]}  Qe7 {[%clk 0:01:42]} 16. Bd5 {[%clk 0:02:02]}  h4 {[%clk 0:01:32]} 17. Bxc6+ {[%clk 0:01:57]}  bxc6 {[%clk 0:01:33]} 18. Nd4 {[%clk 0:01:58]}  Qe5 {[%clk 0:01:20]} 19. Nf5 {[%clk 0:01:57]}  Nxe4 {[%clk 0:01:01]} 20. Qc2 {[%clk 0:01:07]}  Bxf2+ {[%clk 0:00:22]} 21. Qxf2 {[%clk 0:00:20]}  Nxf2 {[%clk 0:00:23]} 22. Bf6 {[%clk 0:00:21]}  Bxf5 {[%clk 0:00:15]} 23. Bxh8 {[%clk 0:00:20]}  Ne4 {[%clk 0:00:13]} 24. Bxe5 {[%clk 0:00:20]}  dxe5 {[%clk 0:00:14]} 25. Ne3 {[%clk 0:00:21]}  Bg6 {[%clk 0:00:13]} 26. Nxg4 {[%clk 0:00:21]}  Ke7 {[%clk 0:00:12]} 27. Nxe5 {[%clk 0:00:21]}  Bf5 {[%clk 0:00:08]} 28. Nxc6+ {[%clk 0:00:21]}  Kf6 {[%clk 0:00:08]} 29. Nd4 {[%clk 0:00:21]}  Bg6 {[%clk 0:00:08]} 30. Ra3 {[%clk 0:00:18]}  Rb8 {[%clk 0:00:08]} 31. Rf3+ {[%clk 0:00:18]}  Kg7 {[%clk 0:00:09]} 32. Nf5+ {[%clk 0:00:16]}  Kh7 {[%clk 0:00:08]} 33. Rxe4 {[%clk 0:00:16]} 1-0


[Site "https://www.chess.com"]

[Event "Titled Tuesday Blitz June 6 Early 2023"]
[White "Jaskolka, Tomasz"]
[Black "Quintiliano Pinto, Renato R."]
[WhiteFideId "1170791"]
[BlackFideId "2117568"]
[WhiteElo "2155"]
[BlackElo "2459"]
[Result "0-1"]
[Round "8"]
[TimeControl "180+2"]
[Date "2023.06.06"]
[WhiteClock "0:00:03"]
[BlackClock "0:00:17"]
[Board "50"]

1. d4 {[%clk 0:03:00]}  d5 {[%clk 0:02:58]} 2. Bf4 {[%clk 0:02:59]}  Nf6 {[%clk 0:02:56]} 3. e3 {[%clk 0:03:00]}  e6 {[%clk 0:02:56]} 4. c3 {[%clk 0:03:00]}  Bd6 {[%clk 0:02:55]} 5. Bg3 {[%clk 0:03:00]}  O-O {[%clk 0:02:56]} 6. Nd2 {[%clk 0:03:01]}  c5 {[%clk 0:02:57]} 7. Ngf3 {[%clk 0:03:01]}  Qc7 {[%clk 0:02:57]} 8. Bd3 {[%clk 0:03:00]}  Nbd7 {[%clk 0:02:57]} 9. Qe2 {[%clk 0:03:00]}  e5 {[%clk 0:02:52]} 10. dxe5 {[%clk 0:03:01]}  Nxe5 {[%clk 0:02:52]} 11. Nxe5 {[%clk 0:03:02]}  Bxe5 {[%clk 0:02:53]} 12. Bxe5 {[%clk 0:03:03]}  Qxe5 {[%clk 0:02:52]} 13. Nf3 {[%clk 0:03:04]}  Qe7 {[%clk 0:02:51]} 14. h3 {[%clk 0:03:03]}  Re8 {[%clk 0:02:46]} 15. O-O {[%clk 0:03:03]}  Bd7 {[%clk 0:02:45]} 16. Rfe1 {[%clk 0:03:03]}  Bc6 {[%clk 0:02:45]} 17. Rad1 {[%clk 0:02:59]}  a6 {[%clk 0:02:43]} 18. Bb1 {[%clk 0:02:46]}  Rad8 {[%clk 0:02:37]} 19. Qc2 {[%clk 0:02:44]}  g6 {[%clk 0:02:33]} 20. Qe2 {[%clk 0:02:33]}  Ne4 {[%clk 0:02:18]} 21. Nd2 {[%clk 0:02:22]}  Nf6 {[%clk 0:02:10]} 22. Nf3 {[%clk 0:02:05]}  Qc7 {[%clk 0:02:05]} 23. Qc2 {[%clk 0:01:51]}  Qa5 {[%clk 0:01:43]} 24. c4 {[%clk 0:01:41]}  d4 {[%clk 0:01:40]} 25. exd4 {[%clk 0:01:40]}  Bxf3 {[%clk 0:01:39]} 26. Rxe8+ {[%clk 0:01:38]}  Rxe8 {[%clk 0:01:34]} 27. gxf3 {[%clk 0:01:38]}  cxd4 {[%clk 0:01:34]} 28. f4 {[%clk 0:01:06]}  Qh5 {[%clk 0:01:09]} 29. Kg2 {[%clk 0:00:56]}  Re2 {[%clk 0:01:06]} 30. Qd3 {[%clk 0:00:50]}  Ne4 {[%clk 0:00:49]} 31. Rf1 {[%clk 0:00:37]}  Nd2 {[%clk 0:00:41]} 32. Rd1 {[%clk 0:00:37]}  Ne4 {[%clk 0:00:34]} 33. Rf1 {[%clk 0:00:37]}  Nxf2 {[%clk 0:00:20]} 34. Rxf2 {[%clk 0:00:27]}  Re3 {[%clk 0:00:20]} 35. Qf1 {[%clk 0:00:17]}  Rxh3 {[%clk 0:00:18]} 36. Qg1 {[%clk 0:00:11]}  Qh4 {[%clk 0:00:11]} 37. Kf1 {[%clk 0:00:09]}  Rh1 {[%clk 0:00:12]} 38. Be4 {[%clk 0:00:09]}  Rxg1+ {[%clk 0:00:12]} 39. Kxg1 {[%clk 0:00:10]}  Qg4+ {[%clk 0:00:12]} 40. Kf1 {[%clk 0:00:10]}  Qd1+ {[%clk 0:00:12]} 41. Kg2 {[%clk 0:00:11]}  d3 {[%clk 0:00:13]} 42. Bf3 {[%clk 0:00:11]}  Qc2 {[%clk 0:00:12]} 43. b3 {[%clk 0:00:10]}  d2 {[%clk 0:00:13]} 44. Kf1 {[%clk 0:00:02]}  d1=Q+ {[%clk 0:00:13]} 45. Bxd1 {[%clk 0:00:02]}  Qxd1+ {[%clk 0:00:14]} 46. Kg2 {[%clk 0:00:03]}  Qd3 {[%clk 0:00:14]} 47. Rf3 {[%clk 0:00:03]}  Qe2+ {[%clk 0:00:14]} 48. Rf2 {[%clk 0:00:04]}  Qe4+ {[%clk 0:00:14]} 49. Kg3 {[%clk 0:00:04]}  h5 {[%clk 0:00:15]} 50. c5 {[%clk 0:00:04]}  Qd3+ {[%clk 0:00:14]} 51. Rf3 {[%clk 0:00:02]}  Qd2 {[%clk 0:00:14]} 52. b4 {[%clk 0:00:02]}  Qxb4 {[%clk 0:00:14]} 53. a3 {[%clk 0:00:02]}  Qxc5 {[%clk 0:00:14]} 54. a4 {[%clk 0:00:03]}  Qg1+ {[%clk 0:00:14]} 55. Kh3 {[%clk 0:00:03]}  Qg4+ {[%clk 0:00:15]} 56. Kh2 {[%clk 0:00:03]}  Qxf3 {[%clk 0:00:15]} 57. f5 {[%clk 0:00:04]}  h4 {[%clk 0:00:16]} 58. a5 {[%clk 0:00:04]}  h3 {[%clk 0:00:16]} 59. Kg1 {[%clk 0:00:03]}  Qg2# {[%clk 0:00:17]} 0-1


[Site "https://www.chess.com"]

[Event "Titled Tuesday Blitz June 6 Early 2023"]
[White "Tristan, Leonardo"]
[Black "Sharapov, Evgeny"]
[WhiteFideId "113816"]
[BlackFideId "14103133"]
[WhiteElo "2461"]
[BlackElo "2367"]
[Result "1-0"]
[Round "8"]
[TimeControl "180+2"]
[Date "2023.06.06"]
[WhiteClock "0:01:30"]
[BlackClock "0:01:33"]
[Board "52"]

1. d4 {[%clk 0:03:00]}  Nf6 {[%clk 0:02:59]} 2. Nf3 {[%clk 0:03:01]}  e6 {[%clk 0:02:59]} 3. Bf4 {[%clk 0:03:01]}  d5 {[%clk 0:02:59]} 4. e3 {[%clk 0:03:02]}  c5 {[%clk 0:02:59]} 5. Nbd2 {[%clk 0:03:01]}  Bd6 {[%clk 0:02:58]} 6. Bb5+ {[%clk 0:02:59]}  Nc6 {[%clk 0:02:53]} 7. Bg3 {[%clk 0:02:59]}  O-O {[%clk 0:02:52]} 8. c3 {[%clk 0:02:59]}  Qc7 {[%clk 0:02:52]} 9. dxc5 {[%clk 0:02:59]}  Bxg3 {[%clk 0:02:49]} 10. hxg3 {[%clk 0:03:00]}  Ne5 {[%clk 0:02:47]} 11. Nxe5 {[%clk 0:02:57]}  Qxe5 {[%clk 0:02:47]} 12. Nf3 {[%clk 0:02:55]}  Qc7 {[%clk 0:02:47]} 13. Qd4 {[%clk 0:02:56]}  Bd7 {[%clk 0:02:40]} 14. Bd3 {[%clk 0:02:55]}  h6 {[%clk 0:02:40]} 15. Ne5 {[%clk 0:02:54]}  Rfc8 {[%clk 0:02:34]} 16. g4 {[%clk 0:02:36]}  Qxc5 {[%clk 0:02:32]} 17. Qf4 {[%clk 0:02:36]}  Bb5 {[%clk 0:02:26]} 18. g5 {[%clk 0:02:13]}  hxg5 {[%clk 0:02:22]} 19. Qh2 {[%clk 0:02:13]}  Kf8 {[%clk 0:02:19]} 20. Qh8+ {[%clk 0:02:13]}  Ke7 {[%clk 0:02:10]} 21. Qxg7 {[%clk 0:02:12]}  Bxd3 {[%clk 0:01:59]} 22. Qxf7+ {[%clk 0:02:12]}  Kd6 {[%clk 0:01:59]} 23. Qxf6 {[%clk 0:02:00]}  Bf5 {[%clk 0:01:49]} 24. g4 {[%clk 0:01:49]}  Be4 {[%clk 0:01:43]} 25. Rh6 {[%clk 0:01:49]}  Re8 {[%clk 0:01:42]} 26. O-O-O {[%clk 0:01:41]}  b5 {[%clk 0:01:40]} 27. Rd4 {[%clk 0:01:30]}  a5 {[%clk 0:01:36]} 28. f3 {[%clk 0:01:30]}  b4 {[%clk 0:01:33]} 29. fxe4 {[%clk 0:01:29]}  bxc3 {[%clk 0:01:33]} 30. Rxd5+ {[%clk 0:01:30]} 1-0


[Site "https://www.chess.com"]

[Event "Titled Tuesday Blitz June 6 Early 2023"]
[White "Machidon, Cristi"]
[Black "Shuvalova, Polina"]
[WhiteFideId "13904590"]
[BlackFideId "24171760"]
[WhiteElo "2355"]
[BlackElo "2281"]
[Result "0-1"]
[Round "8"]
[TimeControl "180+2"]
[Date "2023.06.06"]
[WhiteClock "0:00:36"]
[BlackClock "0:01:28"]
[Board "60"]

1. Nf3 {[%clk 0:03:00]}  Nf6 {[%clk 0:02:58]} 2. d4 {[%clk 0:03:00]}  d5 {[%clk 0:02:57]} 3. c4 {[%clk 0:02:59]}  e6 {[%clk 0:02:57]} 4. Nc3 {[%clk 0:02:59]}  c5 {[%clk 0:02:58]} 5. cxd5 {[%clk 0:02:55]}  Nxd5 {[%clk 0:02:59]} 6. e4 {[%clk 0:02:54]}  Nxc3 {[%clk 0:03:00]} 7. bxc3 {[%clk 0:02:55]}  cxd4 {[%clk 0:03:01]} 8. cxd4 {[%clk 0:02:56]}  Bb4+ {[%clk 0:03:01]} 9. Bd2 {[%clk 0:02:56]}  Bxd2+ {[%clk 0:03:02]} 10. Qxd2 {[%clk 0:02:56]}  O-O {[%clk 0:03:03]} 11. Bc4 {[%clk 0:02:54]}  Nd7 {[%clk 0:03:03]} 12. O-O {[%clk 0:02:54]}  b6 {[%clk 0:03:04]} 13. Rad1 {[%clk 0:02:54]}  Bb7 {[%clk 0:03:04]} 14. Rfe1 {[%clk 0:02:54]}  Nf6 {[%clk 0:03:04]} 15. Qf4 {[%clk 0:02:53]}  Rc8 {[%clk 0:03:02]} 16. Bb3 {[%clk 0:02:52]}  Qc7 {[%clk 0:03:01]} 17. Qh4 {[%clk 0:02:39]}  h6 {[%clk 0:02:58]} 18. d5 {[%clk 0:02:35]}  exd5 {[%clk 0:02:55]} 19. e5 {[%clk 0:02:35]}  Ne4 {[%clk 0:02:55]} 20. Nd4 {[%clk 0:02:32]}  Qd8 {[%clk 0:02:50]} 21. Qxd8 {[%clk 0:02:20]}  Rfxd8 {[%clk 0:02:48]} 22. Nf5 {[%clk 0:02:16]}  Kf8 {[%clk 0:02:23]} 23. f3 {[%clk 0:02:15]}  Nc3 {[%clk 0:02:12]} 24. Rd2 {[%clk 0:02:11]}  Rc5 {[%clk 0:02:11]} 25. Re3 {[%clk 0:01:57]}  g6 {[%clk 0:02:02]} 26. Nxh6 {[%clk 0:01:42]}  a5 {[%clk 0:01:55]} 27. e6 {[%clk 0:01:34]}  fxe6 {[%clk 0:01:53]} 28. Rxe6 {[%clk 0:01:35]}  a4 {[%clk 0:01:50]} 29. Bc2 {[%clk 0:01:34]}  Rc6 {[%clk 0:01:44]} 30. Rxc6 {[%clk 0:01:22]}  Bxc6 {[%clk 0:01:44]} 31. a3 {[%clk 0:01:22]}  Kg7 {[%clk 0:01:42]} 32. Ng4 {[%clk 0:01:22]}  d4 {[%clk 0:01:41]} 33. Ne5 {[%clk 0:01:20]}  Be8 {[%clk 0:01:42]} 34. f4 {[%clk 0:01:16]}  b5 {[%clk 0:01:41]} 35. Kf2 {[%clk 0:01:14]}  b4 {[%clk 0:01:37]} 36. axb4 {[%clk 0:01:13]}  a3 {[%clk 0:01:38]} 37. Bb3 {[%clk 0:00:46]}  Ne4+ {[%clk 0:01:37]} 38. Ke1 {[%clk 0:00:46]}  Nxd2 {[%clk 0:01:38]} 39. Kxd2 {[%clk 0:00:47]}  Rb8 {[%clk 0:01:34]} 40. Nd3 {[%clk 0:00:45]}  Bf7 {[%clk 0:01:30]} 41. Kc2 {[%clk 0:00:36]}  a2 {[%clk 0:01:28]} 0-1


[Site "https://www.chess.com"]